bitfinex/quotes_SOLUSD_20251116
["timestamp","ask_amount","ask_price","bid_price","bid_amount"]
[1763317352660,30.029548,137.24,137.19,7.378348]
[1763317352856,7.378348,137.23,137.17,0.8]
[1763317353057,7.378348,137.23,137.18,7.378348]
[1763317353253,7.378348,137.22,137.17,8.178348]
[1763317353454,30.029548,137.22,137.17,8.178348]
[1763317353651,7.378348,137.21,137.17,0.8]
[1763317353845,0.68,137.21,137.17,0.1]
[1763317354072,7.378348,137.2,137.17,0.1]
[1763317354657,22.6512,137.22,137.17,0.1]
[1763317354858,22.6512,137.22,137.18,0.7]
[1763317355053,7.378348,137.24,137.19,7.378348]
[1763317355368,30.029548,137.25,137.2,7.378348]
[1763317355560,22.6512,137.25,137.21,8.078348]
[1763317355766,10.46882769,137.28,137.22,7.378348]
[1763317355767,7.378348,137.27,137.22,7.378348]
[1763317355967,7.378348,137.27,137.21,0.7]
[1763317356281,7.378348,137.26,137.21,8.078348]
[1763317356583,8.058348,137.28,137.23,7.378348]
[1763317356952,7.378348,137.26,137.19,0.7]
[1763317357149,7.378348,137.26,137.21,7.378348]
[1763317357381,7.378348,137.25,137.2,7.378348]
[1763317357553,22.6512,137.25,137.22,7.378348]
[1763317357749,7.378348,137.28,137.23,7.378348]
[1763317357981,7.378348,137.29,137.24,7.378348]
[1763317358186,7.378348,137.28,137.23,0.7]
[1763317358484,0.68,137.3,137.24,7.378348]
[1763317358485,30.029548,137.29,137.24,7.378348]
[1763317358672,50.68,137.33,137.23,0.7]
[1763317358875,0.68,137.32,137.23,0.7]
[1763317359061,22.6512,137.3,137.26,7.378348]
[1763317359263,7.378348,137.29,137.23,0.7]
[1763317359481,7.378348,137.28,137.23,8.078348]
[1763317359685,7.378348,137.27,137.22,7.378348]
[1763317359886,7.378348,137.27,137.22,8.078348]
[1763317360056,7.378348,137.27,137.22,0.7]
[1763317360384,7.378348,137.27,137.22,8.078348]
[1763317360552,8.058348,137.27,137.22,8.078348]
[1763317360754,7.378348,137.27,137.22,8.078348]
[1763317361378,7.378348,137.26,137.22,0.7]
[1763317361680,82.44002769,137.3,137.18,32.44002769]
[1763317361881,7.378348,137.29,137.24,7.378348]
[1763317362257,7.378348,137.29,137.24,8.078348]
[1763317362859,50.0,137.32,137.27,7.378348]
[1763317363083,58.058348,137.32,137.26,7.378348]
[1763317363280,22.6512,137.29,137.25,0.7]
[1763317363585,7.378348,137.3,137.25,8.078348]
[1763317363767,7.378348,137.31,137.25,0.7]
[1763317364089,7.378348,137.32,137.26,8.078348]
[1763317364467,22.6512,137.29,137.26,0.7]
[1763317364667,50.68,137.34,137.26,7.378348]
[1763317364897,7.378348,137.35,137.29,7.378348]
[1763317365191,22.6512,137.32,137.29,7.378348]
[1763317365593,7.378348,137.34,137.26,0.7]
[1763317365594,7.378348,137.33,137.26,0.7]
[1763317365795,7.378348,137.32,137.27,7.378348]
[1763317365967,7.378348,137.33,137.27,7.378348]
[1763317366168,50.0,137.34,137.28,7.378348]
[1763317366403,22.6512,137.32,137.28,8.078348]
[1763317366897,22.6512,137.32,137.29,0.7]
[1763317367071,30.029548,137.33,137.29,0.7]
[1763317367781,22.6512,137.33,137.29,0.7]
[1763317368185,7.378348,137.35,137.29,0.7]
[1763317368402,7.378348,137.35,137.29,8.078348]
[1763317369102,30.029548,137.36,137.3,8.078348]
[1763317369470,30.029548,137.36,137.3,7.378348]
[1763317369699,30.029548,137.36,137.31,0.7]
[1763317370075,7.378348,137.37,137.31,8.078348]
[1763317370276,7.378348,137.38,137.32,7.378348]
[1763317370477,7.378348,137.37,137.32,0.7]
[1763317371109,7.378348,137.35,137.3,0.7]
[1763317371575,7.378348,137.36,137.3,8.078348]
[1763317371777,7.378348,137.35,137.3,0.7]
[1763317372307,72.6512,137.38,137.3,0.7]
[1763317372476,8.058348,137.37,137.3,0.7]
[1763317372803,8.058348,137.37,137.3,8.078348]
[1763317372804,7.378348,137.36,137.3,8.078348]
[1763317373181,7.378348,137.34,137.3,0.7]
[1763317375098,7.378348,137.35,137.3,0.7]
[1763317375598,30.029548,137.36,137.3,8.078348]
[1763317375787,22.6512,137.36,137.32,7.378348]
[1763317375991,22.6512,137.36,137.31,0.7]
[1763317376181,22.6512,137.36,137.33,7.378348]
[1763317376374,22.6512,137.36,137.31,0.7]
[1763317376572,22.6512,137.36,137.32,7.378348]
[1763317376977,22.6512,137.36,137.33,0.7]
[1763317377905,7.378348,137.4,137.34,7.378348]
[1763317378079,7.378348,137.4,137.35,7.378348]
[1763317378279,30.029548,137.4,137.35,7.378348]
[1763317378493,7.378348,137.4,137.35,0.7]
[1763317378679,22.6512,137.39,137.35,0.7]
[1763317379784,30.029548,137.39,137.35,0.7]
[1763317380600,0.7,137.44,137.35,8.078348]
[1763317380806,0.7,137.44,137.37,7.378348]
[1763317381015,7.378348,137.42,137.36,8.048348]
[1763317381892,7.378348,137.41,137.36,7.378348]
[1763317382192,7.378348,137.41,137.36,8.048348]
[1763317382902,8.078348,137.4,137.34,7.378348]
[1763317383212,8.078348,137.4,137.35,0.67]
[1763317383213,7.378348,137.4,137.35,0.67]
[1763317383510,30.029548,137.4,137.35,0.67]
[1763317383724,22.6512,137.35,137.23,164.9]
[1763317383921,22.6512,137.35,137.2,457.53827714]
[1763317383922,7.378348,137.32,137.24,0.67]
[1763317384099,7.378348,137.32,137.27,7.378348]
[1763317384302,30.029548,137.33,137.28,0.67]
[1763317384491,7.378348,137.34,137.28,8.048348]
[1763317384698,30.029548,137.37,137.31,7.378348]
[1763317384913,0.7,137.39,137.27,7.378348]
[1763317384914,30.029548,137.33,137.27,7.378348]
[1763317385094,7.378348,137.32,137.27,8.048348]
[1763317385403,7.378348,137.32,137.28,0.67]
[1763317385615,22.6512,137.33,137.25,22.6512]
[1763317385793,7.378348,137.31,137.26,0.67]
[1763317386100,7.378348,137.29,137.24,7.378348]
[1763317386288,7.378348,137.29,137.23,8.048348]
[1763317386609,22.6512,137.3,137.23,8.048348]
[1763317386610,7.378348,137.28,137.23,8.048348]
[1763317386915,7.378348,137.28,137.23,0.67]
[1763317387084,7.378348,137.28,137.22,7.378348]
[1763317387085,7.378348,137.27,137.22,7.378348]
[1763317387286,22.6512,137.29,137.23,8.048348]
[1763317387487,50.0,137.32,137.27,7.378348]
[1763317387488,30.029548,137.32,137.27,7.378348]
[1763317387680,7.378348,137.36,137.29,7.378348]
[1763317387681,50.7,137.36,137.29,7.378348]
[1763317388108,7.378348,137.33,137.24,17.07520624]
[1763317388291,7.378348,137.33,137.28,8.048348]
[1763317388488,23.3512,137.35,137.29,7.378348]
[1763317388489,7.378348,137.34,137.29,7.378348]
[1763317388709,22.6512,137.33,137.29,7.378348]
[1763317389087,22.6512,137.33,137.29,8.048348]
[1763317389292,22.6512,137.34,137.3,8.048348]
[1763317389617,7.378348,137.36,137.3,0.67]
[1763317389821,30.029548,137.36,137.31,7.378348]
[1763317390311,9.78882769,137.39,137.27,22.6512]
[1763317390312,7.378348,137.38,137.33,7.378348]
[1763317390618,50.0,137.43,137.37,7.378348]
[1763317390784,12.82127708,137.4,137.32,23.3212]
[1763317390988,12.82127708,137.39,137.34,12.82127708]
[1763317391286,12.82127708,137.39,137.33,0.67]
[1763317391287,12.82127708,137.39,137.33,13.49127708]
[1763317391484,12.82127708,137.39,137.34,12.82127708]
[1763317391784,12.82127708,137.39,137.34,0.67]
[1763317392620,22.6512,137.38,137.35,12.82127708]
[1763317393118,12.82127708,137.42,137.37,12.82127708]
[1763317393317,22.6512,137.42,137.37,12.82127708]
[1763317393507,22.6512,137.41,137.38,13.49127708]
[1763317393697,20.6512,137.41,137.38,13.49127708]
[1763317393895,0.7,137.45,137.38,13.49127708]
[1763317393896,35.47247708,137.43,137.38,13.49127708]
[1763317394102,12.82127708,137.42,137.36,0.67]
[1763317394309,12.82127708,137.42,137.36,13.49127708]
[1763317395116,12.82127708,137.45,137.4,12.82127708]
[1763317395424,13.52127708,137.46,137.4,12.82127708]
[1763317395598,13.52127708,137.46,137.41,12.82127708]
[1763317395803,36.17247708,137.46,137.4,13.48127708]
[1763317396022,0.2,137.47,137.45,12.82127708]
[1763317396320,0.2,137.47,137.44,12.82127708]
[1763317396492,0.2,137.47,137.45,0.66]
[1763317396816,0.2,137.47,137.45,13.48127708]
[1763317396986,0.2,137.47,137.46,12.82127708]
[1763317397190,0.2,137.47,137.42,23.3112]
[1763317397413,0.2,137.47,137.43,13.48127708]
[1763317397833,0.2,137.47,137.43,12.82127708]
[1763317398118,0.2,137.47,137.41,12.82127708]
[1763317398119,12.82127708,137.46,137.41,12.82127708]
[1763317398423,12.82127708,137.44,137.39,35.47247708]
[1763317398630,12.82127708,137.46,137.41,12.82127708]
[1763317398919,0.2,137.47,137.43,12.82127708]
[1763317399097,0.2,137.47,137.44,12.82127708]
[1763317399308,0.2,137.47,137.46,12.82127708]
[1763317399821,0.2,137.47,137.43,12.82127708]
[1763317400200,0.2,137.47,137.43,13.48127708]
[1763317401026,0.2,137.47,137.44,12.82127708]
[1763317401221,0.2,137.47,137.43,13.48127708]
[1763317401425,0.2,137.47,137.46,12.82127708]
[1763317401826,0.2,137.47,137.46,13.48127708]
[1763317402225,0.2,137.47,137.46,12.82127708]
[1763317402514,0.2,137.47,137.45,12.82127708]
[1763317402819,0.2,137.47,137.46,11.32127708]
[1763317403138,0.2,137.47,137.45,13.48127708]
[1763317403815,0.2,137.47,137.46,12.82127708]
[1763317404017,0.2,137.47,137.46,13.48127708]
[1763317404930,0.2,137.47,137.46,45.92130477]
[1763317405634,0.2,137.56,137.49,22.6512]
[1763317405846,0.2,137.56,137.53,12.82127708]
[1763317406632,0.2,137.56,137.54,12.82127708]
[1763317407021,0.2,137.56,137.54,13.48127708]
[1763317407220,0.2,137.56,137.55,12.82127708]
[1763317407542,0.2,137.56,137.54,12.82127708]
[1763317408901,0.2,137.56,137.52,0.66]
[1763317409112,13.68127708,137.56,137.51,12.82127708]
[1763317409517,13.68127708,137.56,137.51,13.48127708]
[1763317410144,0.2,137.56,137.54,12.82127708]
[1763317412027,0.2,137.56,137.55,12.82127708]
[1763317412752,0.2,137.56,137.55,23.32010477]
[1763317412926,12.82127708,137.65,137.56,9.78882769]
[1763317413118,12.82127708,137.65,137.56,0.71]
[1763317413119,12.82127708,137.62,137.56,0.71]
[1763317413314,0.65,137.64,137.57,12.82127708]
[1763317413519,12.82127708,137.63,137.58,12.82127708]
[1763317413934,0.65,137.62,137.58,12.82127708]
[1763317414139,13.47127708,137.62,137.57,12.82127708]
[1763317414327,13.47127708,137.62,137.56,12.82127708]
[1763317414328,12.82127708,137.6,137.56,12.82127708]
[1763317414632,12.82127708,137.59,137.55,12.82127708]
[1763317414830,12.82127708,137.58,137.51,0.71]
[1763317415128,12.82127708,137.58,137.53,12.82127708]
[1763317415326,0.65,137.59,137.55,12.82127708]
[1763317415747,13.47127708,137.59,137.54,12.82127708]
[1763317416130,13.47127708,137.59,137.55,12.82127708]
[1763317416553,12.82127708,137.6,137.56,12.82127708]
[1763317416756,13.47127708,137.6,137.56,12.82127708]
[1763317417749,13.47127708,137.6,137.55,13.53127708]
[1763317420450,13.47127708,137.6,137.56,12.82127708]
[1763317420642,12.82127708,137.61,137.56,13.53127708]
[1763317420866,12.82127708,137.6,137.56,13.53127708]
[1763317421161,50.65,137.62,137.56,13.53127708]
[1763317421360,12.82127708,137.61,137.56,13.53127708]
[1763317421861,13.47127708,137.6,137.56,12.82127708]
[1763317422964,11.47127708,137.6,137.56,13.53127708]
[1763317423140,11.47127708,137.6,137.56,0.71]
[1763317423462,12.82127708,137.6,137.55,12.82127708]
[1763317423636,12.82127708,137.6,137.55,13.53127708]
[1763317424764,12.82127708,137.6,137.56,12.82127708]
[1763317425136,12.82127708,137.6,137.55,0.71]
[1763317425137,50.0,137.66,137.59,12.82127708]
[1763317425361,12.82127708,137.65,137.6,12.82127708]
[1763317425533,50.0,137.66,137.6,12.82127708]
[1763317425737,0.66,137.7,137.64,12.82127708]
[1763317426034,23.3112,137.7,137.63,0.71]
[1763317426234,0.66,137.7,137.64,12.82127708]
[1763317426453,12.82127708,137.69,137.64,12.82127708]
[1763317426634,0.2,137.7,137.65,0.71]
[1763317426846,0.2,137.7,137.69,12.82127708]
[1763317427162,0.2,137.7,137.69,13.53127708]
[1763317427330,0.2,137.7,137.69,12.82127708]
[1763317427533,0.2,137.7,137.63,21.55559572]
[1763317427534,0.2,137.7,137.66,12.82127708]
[1763317427734,0.2,137.7,137.68,12.82127708]
[1763317427955,0.2,137.7,137.67,0.71]
[1763317427956,0.2,137.7,137.69,12.82127708]
[1763317428162,0.2,137.7,137.67,23.3612]
[1763317428362,0.2,137.7,137.68,12.82127708]
[1763317428585,0.2,137.81,137.71,22.6512]
[1763317428738,0.2,137.81,137.72,33.15002769]
[1763317428937,0.2,137.81,137.79,12.82127708]
[1763317429267,0.2,137.81,137.8,12.82127708]
[1763317429434,0.65,137.8,137.75,12.82127708]
[1763317429630,0.65,137.8,137.72,12.82127708]
[1763317429631,12.82127708,137.77,137.72,12.82127708]
[1763317429855,59.78882769,137.79,137.71,12.82127708]
[1763317430131,50.0,137.77,137.7,12.82127708]
[1763317430340,0.65,137.76,137.71,12.82127708]
[1763317430550,0.65,137.76,137.74,12.82127708]
[1763317430745,0.65,137.78,137.75,12.82127708]
[1763317431371,0.65,137.78,137.76,12.82127708]
[1763317431537,0.65,137.8,137.77,12.82127708]
[1763317432161,0.65,137.8,137.73,22.6512]
[1763317432346,0.65,137.8,137.74,12.82127708]
[1763317432546,0.65,137.8,137.71,22.6512]
[1763317432547,72.61010477,137.79,137.73,12.82127708]
[1763317432743,72.61010477,137.79,137.7,12.82127708]
[1763317432744,59.78882769,137.77,137.7,12.82127708]
[1763317433061,59.78882769,137.77,137.65,9.78882769]
[1763317433062,72.61010477,137.77,137.71,12.82127708]
[1763317433235,0.65,137.76,137.71,12.82127708]
[1763317434038,0.65,137.76,137.68,22.6512]
[1763317434039,0.65,137.76,137.72,12.82127708]
[1763317434264,0.65,137.76,137.73,12.82127708]
[1763317434645,0.65,137.76,137.74,12.82127708]
[1763317434847,22.6512,137.78,137.74,12.82127708]
[1763317435053,0.65,137.77,137.74,12.82127708]
[1763317435239,0.65,137.77,137.71,22.6512]
[1763317435436,0.65,137.77,137.72,12.82127708]
[1763317436061,63.47127708,137.77,137.64,9.78882769]
[1763317436339,63.47127708,137.77,137.65,0.71]
[1763317436340,85.47247708,137.75,137.65,0.71]
[1763317436666,12.82127708,137.74,137.68,12.82127708]
[1763317436847,13.47127708,137.74,137.65,22.6512]
[1763317437049,0.65,137.73,137.67,12.82127708]
[1763317437451,0.65,137.73,137.68,12.82127708]
[1763317437655,0.65,137.73,137.69,12.82127708]
[1763317438166,0.65,137.73,137.71,12.82127708]
[1763317438346,0.65,137.73,137.7,12.82127708]
[1763317438842,0.65,137.73,137.71,12.82127708]
[1763317439265,0.65,137.73,137.7,12.82127708]
[1763317439459,0.65,137.77,137.72,12.82127708]
[1763317439668,0.65,137.76,137.73,12.82127708]
[1763317439966,0.65,137.8,137.75,12.82127708]
[1763317440182,0.7,137.79,137.76,12.82127708]
[1763317440394,0.7,137.79,137.75,12.82127708]
[1763317440889,0.7,137.79,137.76,12.82127708]
[1763317443587,0.7,137.79,137.75,12.82127708]
[1763317443869,12.82127708,137.77,137.66,0.66]
[1763317444064,12.82127708,137.77,137.7,12.82127708]
[1763317444263,12.82127708,137.77,137.67,12.82127708]
[1763317444264,12.82127708,137.74,137.67,12.82127708]
[1763317444662,0.7,137.73,137.68,12.82127708]
[1763317445259,0.7,137.73,137.63,9.78882769]
[1763317445260,0.7,137.73,137.69,12.82127708]
[1763317445591,0.7,137.73,137.7,12.82127708]
[1763317446302,0.7,137.73,137.69,12.82127708]
[1763317446599,50.0,137.76,137.7,12.82127708]
[1763317446797,0.7,137.75,137.71,12.82127708]
[1763317447101,13.52127708,137.75,137.67,23.3112]
[1763317447402,13.52127708,137.74,137.69,12.82127708]
[1763317447765,0.7,137.73,137.7,12.82127708]
[1763317447965,0.7,137.73,137.69,12.82127708]
[1763317448183,13.52127708,137.73,137.69,12.82127708]
[1763317448394,0.7,137.73,137.69,12.82127708]
[1763317448597,0.7,137.73,137.67,22.6512]
[1763317448805,0.2,137.73,137.69,12.82127708]
[1763317449167,0.2,137.73,137.7,12.82127708]
[1763317449369,12.82127708,137.75,137.7,12.82127708]
[1763317450800,13.52127708,137.74,137.69,12.82127708]
[1763317451298,13.52127708,137.74,137.67,22.6512]
[1763317451299,13.52127708,137.73,137.66,23.3112]
[1763317451487,13.52127708,137.73,137.68,12.82127708]
[1763317451695,13.52127708,137.73,137.69,12.82127708]
[1763317451888,0.7,137.73,137.69,12.82127708]
[1763317452884,0.7,137.73,137.69,7.33069911]
[1763317453085,7.53069911,137.73,137.68,7.33069911]
[1763317453398,7.33069911,137.73,137.68,7.33069911]
[1763317453983,7.33069911,137.74,137.69,7.33069911]
[1763317454207,7.33069911,137.73,137.68,7.33069911]
[1763317454400,7.33069911,137.72,137.67,7.33069911]
[1763317454716,29.98189911,137.72,137.67,7.33069911]
[1763317454922,7.33069911,137.71,137.66,7.33069911]
[1763317455085,7.33069911,137.7,137.65,7.99069911]
[1763317455708,8.01069911,137.7,137.65,7.99069911]
[1763317455890,0.68,137.7,137.65,7.99069911]
[1763317456090,0.68,137.7,137.66,7.33069911]
[1763317456696,0.68,137.7,137.66,8.02069911]
[1763317456896,0.68,137.7,137.66,7.33069911]
[1763317457699,8.01069911,137.7,137.65,7.33069911]
[1763317458187,0.68,137.69,137.65,7.33069911]
[1763317458924,8.01069911,137.69,137.64,7.33069911]
[1763317459294,7.33069911,137.69,137.64,7.33069911]
[1763317459594,7.33069911,137.67,137.62,7.33069911]
[1763317460020,0.68,137.66,137.63,7.33069911]
[1763317460189,0.68,137.66,137.62,0.69]
[1763317460388,7.33069911,137.67,137.63,7.33069911]
[1763317460619,8.01069911,137.67,137.63,7.33069911]
[1763317461004,0.68,137.66,137.62,8.02069911]
[1763317461500,0.68,137.66,137.62,7.33069911]
[1763317461708,0.68,137.66,137.61,0.1]
[1763317461709,7.33069911,137.64,137.61,0.1]
[1763317461906,7.33069911,137.65,137.61,0.1]
[1763317462123,8.01069911,137.65,137.61,0.1]
[1763317462318,22.6512,137.68,137.62,8.02069911]
[1763317462319,0.68,137.68,137.62,8.02069911]
[1763317462524,7.33069911,137.66,137.61,7.43069911]
[1763317462824,7.33069911,137.64,137.61,0.1]
[1763317463328,8.01069911,137.63,137.61,0.1]
[1763317463525,7.33069911,137.62,137.61,0.1]
[1763317463703,8.01069911,137.62,137.61,0.1]
[1763317464599,17.7995268,137.62,137.61,0.1]
[1763317464805,67.7995268,137.62,137.61,0.1]
[1763317466920,75.13022591,137.62,137.61,0.1]
[1763317467128,22.6512,137.59,137.55,0.1]
[1763317467311,50.0,137.6,137.55,0.1]
[1763317467312,22.6512,137.58,137.55,0.1]
[1763317467633,29.98189911,137.58,137.55,0.1]
[1763317468000,8.01069911,137.61,137.56,7.33069911]
[1763317468197,30.66189911,137.61,137.56,7.33069911]
[1763317468399,7.33069911,137.62,137.57,8.02069911]
[1763317468612,29.98189911,137.62,137.57,8.02069911]
[1763317468830,30.66189911,137.62,137.57,8.02069911]
[1763317470726,22.6512,137.62,137.58,0.72]
[1763317470909,30.67189911,137.62,137.57,7.33069911]
[1763317471309,30.67189911,137.62,137.57,8.05069911]
[1763317471731,7.33069911,137.6,137.56,7.33069911]
[1763317472406,29.98189911,137.62,137.57,0.72]
[1763317472714,22.6512,137.62,137.57,8.05069911]
[1763317472910,30.67189911,137.62,137.57,8.05069911]
[1763317473106,8.02069911,137.61,137.55,0.82]
[1763317473313,8.02069911,137.61,137.56,7.33069911]
[1763317473722,8.02069911,137.61,137.56,8.05069911]
[1763317473935,72.6512,137.57,137.55,0.1]
[1763317474200,80.67189911,137.59,137.55,0.1]
[1763317474420,22.6512,137.56,137.55,0.1]
[1763317476227,7.33069911,137.57,137.55,0.1]
[1763317476431,23.3412,137.58,137.55,0.1]
[1763317477019,7.33069911,137.56,137.55,0.1]
[1763317478127,23.3412,137.58,137.55,0.1]
[1763317478337,7.33069911,137.57,137.55,0.1]
[1763317478523,7.33069911,137.56,137.55,0.1]
[1763317479820,50.0,137.59,137.55,0.1]
[1763317479821,10.47882769,137.61,137.55,0.82]
[1763317480023,7.33069911,137.59,137.55,0.82]
[1763317481238,50.0,137.62,137.55,8.15069911]
[1763317481430,7.33069911,137.6,137.55,8.15069911]
[1763317481630,23.3412,137.63,137.56,8.05069911]
[1763317481934,7.33069911,137.61,137.56,8.05069911]
[1763317482326,7.33069911,137.61,137.57,0.72]
[1763317483430,7.33069911,137.6,137.57,0.72]
[1763317487137,23.3412,137.63,137.55,7.43069911]
[1763317487138,7.33069911,137.58,137.55,0.1]
[1763317487453,0.69,137.59,137.55,0.1]
[1763317487454,7.33069911,137.6,137.56,0.72]
[1763317487762,7.33069911,137.61,137.56,0.72]
[1763317488463,31.87708285,137.63,137.56,0.72]
[1763317488635,7.33069911,137.61,137.56,0.72]
[1763317490073,7.33069911,137.6,137.56,0.72]
[1763317490963,0.69,137.6,137.56,0.72]
[1763317491166,7.33069911,137.58,137.56,0.72]
[1763317492174,7.33069911,137.57,137.55,0.1]
[1763317492474,0.69,137.6,137.55,0.1]
[1763317492774,50.0,137.64,137.57,7.33069911]
[1763317492963,7.33069911,137.62,137.58,0.72]
[1763317493173,50.0,137.64,137.58,0.72]
[1763317493364,7.33069911,137.63,137.58,0.72]
[1763317493683,7.33069911,137.62,137.58,0.72]
[1763317494002,7.33069911,137.61,137.58,0.72]
[1763317494346,7.33069911,137.61,137.56,29.98189911]
[1763317494549,7.33069911,137.59,137.56,0.72]
[1763317494747,7.33069911,137.61,137.57,0.72]
[1763317496179,7.33069911,137.61,137.55,22.7512]
[1763317496180,7.33069911,137.6,137.55,0.82]
[1763317496380,7.33069911,137.58,137.55,0.1]
[1763317496582,7.33069911,137.57,137.55,0.1]
[1763317497087,7.33069911,137.58,137.55,0.1]
[1763317497394,7.33069911,137.58,137.55,0.82]
[1763317498256,7.33069911,137.61,137.56,7.33069911]
[1763317498672,7.33069911,137.61,137.57,0.72]
[1763317499056,7.33069911,137.61,137.57,8.05069911]
[1763317499680,7.33069911,137.61,137.57,0.72]
[1763317501193,8.02069911,137.61,137.57,0.72]
[1763317501682,7.33069911,137.61,137.57,0.72]
[1763317501988,8.02069911,137.6,137.55,7.43069911]
[1763317502286,0.69,137.6,137.55,0.1]
[1763317502586,7.33069911,137.59,137.55,0.81]
[1763317502883,7.33069911,137.6,137.56,8.04069911]
[1763317503185,7.33069911,137.58,137.55,0.1]
[1763317503393,7.33069911,137.56,137.55,0.1]
[1763317503762,8.02069911,137.56,137.55,0.1]
[1763317503983,17.8095268,137.56,137.55,0.1]
[1763317504185,22.6512,137.53,137.47,0.71]
[1763317504491,7.33069911,137.5,137.47,0.71]
[1763317504867,7.33069911,137.5,137.45,8.04069911]
[1763317505062,7.33069911,137.5,137.46,0.71]
[1763317505272,7.33069911,137.49,137.45,0.71]
[1763317505586,7.33069911,137.48,137.45,0.71]
[1763317505793,7.33069911,137.47,137.43,8.04069911]
[1763317505965,7.33069911,137.47,137.43,0.71]
[1763317506166,0.69,137.46,137.42,0.1]
[1763317506361,7.33069911,137.46,137.43,0.71]
[1763317506889,7.33069911,137.46,137.42,7.43069911]
[1763317507084,7.33069911,137.46,137.42,8.14069911]
[1763317507267,22.6512,137.47,137.42,0.81]
[1763317507475,7.33069911,137.46,137.42,0.81]
[1763317507670,7.33069911,137.46,137.42,8.14069911]
[1763317508187,7.33069911,137.46,137.42,0.81]
[1763317508767,7.33069911,137.43,137.42,0.1]
[1763317509195,8.02069911,137.43,137.42,0.1]
[1763317509873,67.8095268,137.43,137.42,0.1]
[1763317510466,82.44002769,137.42,137.41,0.1]
[1763317510661,22.6512,137.39,137.32,0.1]
[1763317510864,50.0,137.4,137.32,0.81]
[1763317510865,72.6512,137.37,137.32,0.81]
[1763317511093,29.98189911,137.37,137.32,0.81]
[1763317511264,7.33069911,137.35,137.32,0.81]
[1763317511593,7.33069911,137.36,137.31,6.64069911]
[1763317511802,23.3412,137.37,137.32,7.33069911]
[1763317511966,22.6512,137.39,137.34,7.33069911]
[1763317512159,22.6512,137.39,137.28,14.61494965]
[1763317512160,7.33069911,137.41,137.36,7.33069911]
[1763317512666,0.72,137.41,137.37,7.33069911]
[1763317512888,0.72,137.41,137.3,9.78882769]
[1763317512889,0.72,137.43,137.38,12.82096428]
[1763317513061,24.14824032,137.51,137.3,12.82096428]
[1763317513062,21.88582892,137.48,137.41,9.78882769]
[1763317513262,21.88582892,137.48,137.36,17.06861147]
[1763317513263,12.82096428,137.48,137.36,17.06861147]
[1763317513462,12.82096428,137.47,137.43,12.82096428]
[1763317514005,12.82096428,137.49,137.44,12.82096428]
[1763317514169,22.6512,137.48,137.44,12.82096428]
[1763317514370,0.72,137.48,137.44,12.82096428]
[1763317514683,13.54096428,137.48,137.43,13.53096428]
[1763317516084,12.82096428,137.47,137.43,13.53096428]
[1763317516495,13.47096428,137.48,137.43,13.53096428]
[1763317516686,13.47096428,137.48,137.43,12.82096428]
[1763317516908,12.82096428,137.44,137.39,12.82096428]
[1763317517071,22.6512,137.44,137.32,9.78882769]
[1763317517383,12.82096428,137.41,137.37,12.82096428]
[1763317517585,12.82096428,137.4,137.33,0.66]
[1763317517788,12.82096428,137.38,137.34,12.82096428]
[1763317518098,0.65,137.42,137.36,12.82096428]
[1763317518288,12.82096428,137.41,137.36,12.82096428]
[1763317518473,12.82096428,137.4,137.36,12.82096428]
[1763317518673,50.65,137.41,137.27,7.2848848]
[1763317518876,50.65,137.41,137.26,1.99999999]
[1763317518877,12.82096428,137.38,137.33,12.82096428]
[1763317519381,12.82096428,137.38,137.33,13.48096428]
[1763317519593,13.47096428,137.38,137.33,13.48096428]
[1763317519796,12.82096428,137.38,137.34,13.48096428]
[1763317520585,22.6512,137.4,137.35,0.66]
[1763317520901,12.82096428,137.41,137.36,12.82096428]
[1763317521276,12.82096428,137.41,137.31,17.07159093]